bitfinex/quotes_BTCUSD_20220204
["timestamp","ask_amount","ask_price","bid_price","bid_amount"]
[1643985400488,0.40736584,37708.0,37697.0,0.252371]
[1643985400489,0.115075,37705.0,37697.0,0.252371]
[1643985400681,0.24712153,37709.0,37697.0,0.252371]
[1643985400682,0.04999999,37702.0,37697.0,0.252371]
[1643985400888,0.04999999,37698.0,37684.0,0.27615222]
[1643985401082,0.04999999,37698.0,37684.0,0.37615222]
[1643985401284,0.04999999,37696.0,37684.0,0.37615222]
[1643985401584,0.12678524,37709.0,37685.0,0.00751139]
[1643985401585,0.04999999,37702.0,37685.0,0.00751139]
[1643985401783,0.115075,37706.0,37701.0,0.08504248]
[1643985401983,0.04999999,37702.0,37701.0,0.08504248]
[1643985402383,0.16507499,37702.0,37701.0,0.08504248]
[1643985402581,0.04999999,37702.0,37698.0,0.2225023]
[1643985402782,0.04999999,37704.0,37698.0,0.2225023]
[1643985402985,0.005,37709.0,37698.0,0.2725023]
[1643985402986,0.04999999,37705.0,37698.0,0.2725023]
[1643985403446,0.005,37709.0,37699.0,0.61556241]
[1643985403447,0.05499999,37709.0,37699.0,0.61556241]
[1643985403639,0.05499999,37709.0,37701.0,0.347825]
[1643985403640,0.005,37709.0,37701.0,0.347825]
[1643985403838,0.005,37709.0,37708.0,0.29973949]
[1643985404040,0.005,37709.0,37708.0,0.94741151]
[1643985404240,0.005,37709.0,37708.0,0.59958651]
[1643985404441,0.005,37709.0,37708.0,0.29973949]
[1643985404640,0.005,37709.0,37708.0,0.94138748]
[1643985404842,0.002,37709.0,37708.0,1.18272879]
[1643985405041,0.002,37709.0,37708.0,0.7389058]
[1643985405242,0.002,37709.0,37708.0,0.72738793]
[1643985405444,0.0011,37712.0,37708.0,1.22521293]
[1643985405647,0.05087666,37723.0,37710.0,1.95]
[1643985405842,0.00123889,37723.0,37711.0,0.62397722]
[1643985406045,0.00123889,37723.0,37717.0,0.24]
[1643985406242,0.15473848,37723.0,37717.0,0.34010903]
[1643985406445,0.04999999,37718.0,37717.0,0.34010903]
[1643985406643,0.04999999,37718.0,37706.0,0.0488]
[1643985406843,0.04999999,37721.0,37707.0,0.27615222]
[1643985407086,0.00123889,37723.0,37716.0,0.02127007]
[1643985407281,0.00123889,37723.0,37717.0,0.397825]
[1643985407282,0.00087667,37723.0,37717.0,0.397825]
[1643985407580,0.05087666,37723.0,37719.0,0.08582219]
[1643985407781,0.15164954,37723.0,37719.0,0.35885208]
[1643985407981,0.04999999,37720.0,37717.0,0.29247794]
[1643985408183,0.00087667,37723.0,37721.0,0.347825]
[1643985408383,0.00123889,37723.0,37721.0,0.347825]
[1643985408588,0.00087667,37723.0,37721.0,0.497825]
[1643985408787,0.00036222,37728.0,37722.0,0.347825]
[1643985408983,0.04999999,37733.0,37723.0,1.95]
[1643985409186,0.0011,37745.0,37724.0,0.62499392]
[1643985409187,0.04999999,37736.0,37724.0,0.62499392]
[1643985409384,0.01982673,37735.0,37725.0,0.347825]
[1643985409584,0.04999999,37730.0,37729.0,0.347825]
[1643985409786,0.04999999,37730.0,37717.0,0.4688]
[1643985409983,0.01982673,37735.0,37718.0,0.347825]
[1643985409984,0.04999999,37723.0,37718.0,0.347825]
[1643985410286,0.01982673,37735.0,37717.0,0.5188]
[1643985410287,0.04999999,37719.0,37717.0,0.42]
[1643985410485,0.04999999,37722.0,37717.0,0.42]
[1643985410833,0.04999999,37721.0,37718.0,0.09658454]
[1643985411338,0.15889616,37717.0,37709.0,0.02655]
[1643985411638,1.94167225,37729.0,37708.0,0.74810369]
[1643985411639,0.04999999,37710.0,37708.0,0.74810369]
[1643985412032,0.04999999,37712.0,37708.0,0.84160813]
[1643985412234,0.04999999,37709.0,37708.0,0.74810369]
[1643985413040,0.27716892,37719.0,37708.0,0.74810369]
[1643985413041,0.04999999,37710.0,37708.0,0.74810369]
[1643985413936,0.04999999,37710.0,37708.0,0.99914116]
[1643985414434,0.04999999,37717.0,37709.0,0.98404335]
[1643985414701,0.04999999,37717.0,37709.0,0.83807835]
[1643985414901,0.03318524,37728.0,37709.0,0.83807835]
[1643985415100,0.06631,37730.0,37709.0,0.83807835]
[1643985415101,0.04999999,37718.0,37710.0,0.05]
[1643985415299,0.04999999,37718.0,37711.0,0.347825]
[1643985415300,0.21409366,37718.0,37711.0,0.347825]
[1643985415499,0.04999999,37716.0,37709.0,0.83807835]
[1643985415702,0.03651591,37726.0,37709.0,0.10186]
[1643985415899,0.34275415,37727.0,37709.0,0.38237764]
[1643985416099,0.04999999,37714.0,37709.0,0.38237764]
[1643985416299,0.04999999,37716.0,37710.0,0.05]
[1643985416502,0.04999999,37716.0,37715.0,0.26416612]
[1643985416701,0.04999999,37716.0,37709.0,0.10186]
[1643985416702,0.1816618,37715.0,37709.0,0.10186]
[1643985416901,0.04999999,37710.0,37708.0,0.74810369]
[1643985417105,0.20636349,37709.0,37708.0,0.74810369]
[1643985417499,0.20636349,37709.0,37708.0,0.68082722]
[1643985417699,0.45314234,37709.0,37699.0,0.10023798]
[1643985417898,0.04999999,37700.0,37699.0,0.10023798]
[1643985418099,0.04999999,37700.0,37699.0,1.24806298]
[1643985418331,0.0488,37706.0,37699.0,0.90023798]
[1643985418532,0.04999999,37701.0,37700.0,1.047825]
[1643985418732,0.04999999,37701.0,37700.0,0.7]
[1643985419037,0.04999999,37701.0,37699.0,0.10023798]
[1643985419038,0.0488,37706.0,37699.0,0.12031688]
[1643985419233,0.04999999,37702.0,37699.0,0.0200789]
[1643985419433,0.19903371,37704.0,37699.0,0.0200789]
[1643985419434,0.115367,37701.0,37699.0,0.0200789]
[1643985419935,0.04999999,37700.0,37699.0,0.0200789]
[1643985420433,0.04999999,37700.0,37699.0,0.09725598]
[1643985420634,0.04999999,37711.0,37699.0,0.44512598]
[1643985420837,0.14329497,37728.0,37700.0,0.63045056]
[1643985420838,0.04999999,37715.0,37700.0,0.63045056]
[1643985421038,0.04999999,37721.0,37701.0,0.0488]
[1643985421235,0.04999999,37723.0,37702.0,0.28258056]
[1643985421436,2.43062598,37732.0,37703.0,0.0488]
[1643985421644,0.04999999,37723.0,37716.0,0.24535161]
[1643985421837,0.29540424,37724.0,37706.0,0.041656]
[1643985422109,0.29540424,37724.0,37704.0,0.28258056]
[1643985422110,0.04999999,37715.0,37707.0,0.28258056]
[1643985422306,0.29540424,37724.0,37705.0,0.38258056]
[1643985422307,0.04999999,37714.0,37705.0,0.38258056]
[1643985422502,0.39999999,37706.0,37694.0,0.02033126]
[1643985422703,0.24609661,37695.0,37694.0,0.02033126]
[1643985422899,0.16536699,37695.0,37694.0,0.02033126]
[1643985423303,0.16536699,37695.0,37690.0,0.001]
[1643985423499,0.04999999,37691.0,37690.0,0.001]
[1643985423699,0.04999999,37691.0,37690.0,0.00055451]
[1643985423897,0.0488,37697.0,37690.0,0.00055451]
[1643985424098,0.0488,37697.0,37691.0,0.28696439]
[1643985424099,0.04999999,37694.0,37691.0,0.28696439]
[1643985424305,0.04999999,37692.0,37690.0,0.00055451]
[1643985424505,0.49133887,37691.0,37690.0,0.00055451]
[1643985424699,0.19133887,37691.0,37690.0,0.00055451]
[1643985424900,0.67412124,37691.0,37690.0,0.00055451]
[1643985425302,1.19368764,37691.0,37690.0,0.00055451]
[1643985425502,1.24248764,37691.0,37690.0,0.00055451]
[1643985425701,0.86651577,37691.0,37690.0,0.00055451]
[1643985425938,1.5837334,37691.0,37690.0,0.00055451]
[1643985426138,0.02875813,37675.0,37665.0,0.5072]
[1643985426340,0.02875813,37675.0,37674.0,1.24787]
[1643985426537,0.02875813,37675.0,37673.0,0.2723002]
[1643985426738,0.02875813,37675.0,37674.0,0.74787]
[1643985426942,0.02875813,37675.0,37673.0,0.2723002]
[1643985427136,0.02875813,37675.0,37672.0,0.003]
[1643985427340,0.04999999,37673.0,37672.0,0.003]
[1643985427637,0.02875813,37675.0,37672.0,0.003]
[1643985428336,0.02875813,37675.0,37672.0,0.53557265]
[1643985428536,0.02875813,37675.0,37673.0,0.10195]
[1643985428737,0.04999999,37674.0,37673.0,0.00195]
[1643985428937,0.02875813,37675.0,37672.0,0.15592]
[1643985429139,0.02875813,37675.0,37673.0,0.05]
[1643985429338,0.02875813,37675.0,37674.0,1.74787]
[1643985429596,0.02875813,37675.0,37674.0,1.64787]
[1643985429786,5.813e-05,37675.0,37674.0,1.64787]
[1643985429984,5.813e-05,37675.0,37674.0,1.97229014]
[1643985430186,5.813e-05,37675.0,37674.0,0.82229014]
[1643985430986,5.813e-05,37675.0,37674.0,1.37229014]
[1643985431188,0.05005812,37675.0,37673.0,0.15291]
[1643985431393,0.27897008,37674.0,37673.0,0.15291]
[1643985431588,0.05005812,37675.0,37670.0,0.01808403]
[1643985431589,0.16542512,37675.0,37670.0,0.01808403]
[1643985431790,0.04999999,37672.0,37671.0,0.27645]
[1643985431987,0.95996699,37672.0,37671.0,0.32558]
[1643985432191,0.95996699,37672.0,37671.0,0.32548]
[1643985432387,1.05996699,37672.0,37671.0,0.25076004]
[1643985432590,0.30082555,37670.0,37664.0,0.001]
[1643985432787,0.04999999,37665.0,37664.0,0.001]
[1643985432991,0.20996699,37665.0,37651.0,0.011]
[1643985433187,0.04999999,37660.0,37651.0,0.011]
[1643985433441,0.20996699,37660.0,37651.0,0.10501263]
[1643985434040,0.20996699,37660.0,37652.0,0.27321836]
[1643985434041,0.159967,37660.0,37652.0,0.27321836]
[1643985434240,0.04999999,37667.0,37659.0,0.41951]
[1643985434442,0.01808403,37671.0,37660.0,1.03858836]
[1643985434640,0.01808403,37671.0,37661.0,0.27221836]
[1643985434844,0.04999999,37668.0,37662.0,0.26551]
[1643985435039,0.376174,37671.0,37662.0,0.41847]
[1643985435240,0.04999999,37663.0,37662.0,0.41847]
[1643985439093,0.04999999,37663.0,37659.0,0.26034475]
[1643985439094,0.3,37662.0,37659.0,0.001]
[1643985439294,0.19999998,37660.0,37659.0,0.001]
[1643985439488,0.21536699,37660.0,37659.0,0.001]
[1643985440488,0.04999999,37660.0,37659.0,0.001]
[1643985441355,0.16536699,37660.0,37659.0,0.001]
[1643985445685,0.16536699,37660.0,37654.0,0.001]
[1643985445686,1.3,37659.0,37654.0,0.001]
[1643985445888,0.616459,37652.0,37638.0,0.00023124]
[1643985446087,0.616459,37652.0,37641.0,0.01123124]
[1643985446088,0.05,37649.0,37641.0,0.01123124]
[1643985446288,1.31536699,37648.0,37641.0,0.011]
[1643985446690,0.99303834,37648.0,37641.0,0.011]
[1643985446887,0.99883718,37648.0,37641.0,0.011]
[1643985447086,0.99303834,37648.0,37641.0,0.011]
[1643985447286,1.0005269,37648.0,37641.0,0.011]
[1643985447487,0.99303834,37648.0,37641.0,0.011]
[1643985447688,1.65074954,37648.0,37641.0,0.011]
[1643985447891,0.16536699,37648.0,37641.0,0.011]
[1643985448535,0.115367,37648.0,37641.0,0.011]
[1643985448734,0.28967184,37668.0,37641.0,0.011]
[1643985448735,0.29660579,37668.0,37647.0,1.701]
[1643985448934,0.21385694,37657.0,37647.0,1.801]
[1643985449134,0.04999999,37655.0,37654.0,0.28906972]
[1643985449334,0.04999999,37655.0,37647.0,0.001]
[1643985449533,0.38988513,37662.0,37647.0,0.001]
[1643985449534,0.04999999,37651.0,37647.0,0.001]
[1643985449733,0.38988513,37662.0,37651.0,0.19000001]
[1643985449933,0.31014169,37662.0,37651.0,0.19000001]
[1643985450134,0.28727464,37671.0,37655.0,0.04999999]
[1643985450333,0.17037529,37664.0,37656.0,0.04999999]
[1643985450637,0.17037529,37664.0,37652.0,0.04999999]
[1643985450834,0.17037529,37664.0,37648.0,0.75]
[1643985451033,0.08232698,37663.0,37659.0,0.2530184]
[1643985451240,0.115367,37661.0,37648.0,0.7]
[1643985451434,0.34315607,37662.0,37652.0,0.04999999]
[1643985451634,0.34315607,37662.0,37648.0,0.7]
[1643985451834,0.34315607,37662.0,37652.0,0.04999999]
[1643985452289,0.19118163,37664.0,37661.0,0.31026693]
[1643985452489,0.19118163,37664.0,37652.0,0.04999999]
[1643985452689,0.115367,37663.0,37660.0,0.04999999]
[1643985452891,0.00551177,37674.0,37658.0,0.0829148]
[1643985452892,5.813e-05,37675.0,37658.0,0.0829148]
[1643985453091,5.813e-05,37675.0,37660.0,0.04999999]
[1643985453296,0.27256963,37669.0,37666.0,0.26160735]
[1643985453690,0.44987456,37669.0,37666.0,0.26160735]
[1643985453891,0.44987456,37669.0,37658.0,0.1544646]
[1643985453892,0.115367,37668.0,37658.0,0.1544646]
[1643985454091,0.115367,37668.0,37658.0,0.02154981]
[1643985454092,0.1789177,37663.0,37658.0,0.02154981]
[1643985454291,0.115367,37662.0,37658.0,0.02154981]
[1643985454490,0.115367,37662.0,37661.0,0.04999999]
[1643985454890,0.115367,37662.0,37661.0,0.34850964]
[1643985455189,0.115367,37662.0,37661.0,0.29850965]
[1643985455588,0.13876077,37669.0,37661.0,0.29850965]
[1643985455589,0.08876077,37669.0,37661.0,0.29850965]
[1643985456034,0.20166,37674.0,37661.0,0.29850965]
[1643985456236,0.04999999,37663.0,37653.0,0.066406]
[1643985456437,0.04999999,37663.0,37656.0,0.05]
[1643985456635,0.02039556,37657.0,37656.0,0.91445918]
[1643985457036,0.04999999,37663.0,37657.0,0.8]
[1643985457738,0.15165999,37663.0,37657.0,0.8]
[1643985457936,0.15165999,37663.0,37657.0,0.85]
[1643985458136,0.15165999,37663.0,37657.0,0.95]
[1643985458339,0.15165999,37663.0,37657.0,0.05]
[1643985458538,0.15165999,37663.0,37656.0,0.07039556]
[1643985458539,0.04999999,37659.0,37656.0,0.07039556]
[1643985458740,0.04999999,37659.0,37656.0,0.02039556]
[1643985458941,0.15165999,37659.0,37656.0,0.02039556]
[1643985459237,0.10166,37659.0,37656.0,0.02039556]
[1643985459440,0.115367,37658.0,37657.0,0.27969702]
[1643985459691,0.10166,37659.0,37657.0,0.27969702]
[1643985459890,0.10166,37659.0,37657.0,0.32969702]
[1643985460288,0.10166,37659.0,37657.0,0.27969702]
[1643985461090,0.04999999,37661.0,37657.0,0.27969702]
[1643985461890,0.10166,37661.0,37657.0,0.27969702]
[1643985462291,0.04999999,37658.0,37657.0,0.27969702]
[1643985462491,0.10166,37661.0,37657.0,0.27969702]
[1643985462890,0.15165999,37661.0,37657.0,0.27969702]
[1643985463092,0.115367,37660.0,37653.0,0.01851373]
[1643985463343,0.04999999,37656.0,37655.0,0.02176751]
[1643985463546,0.15165999,37656.0,37655.0,0.02176751]
[1643985463741,0.10166,37656.0,37655.0,0.02176751]
[1643985464943,0.04999999,37662.0,37655.0,0.02176751]
[1643985465143,0.04999999,37662.0,37657.0,0.07651433]
[1643985465343,0.32910284,37670.0,37657.0,0.07651433]
[1643985465344,0.62358193,37677.0,37657.0,0.07651433]
[1643985465545,0.166403,37680.0,37657.0,0.17651433]
[1643985465546,0.04999999,37672.0,37657.0,0.17651433]
[1643985465746,0.37074584,37676.0,37657.0,0.37565133]
[1643985465943,0.37074584,37676.0,37657.0,0.47565133]
[1643985466344,0.15818246,37673.0,37672.0,0.30522699]
[1643985466546,0.27354946,37673.0,37672.0,0.30522699]
[1643985466746,0.37520946,37673.0,37672.0,0.30522699]
[1643985466947,0.217027,37673.0,37672.0,0.30522699]
[1643985467196,0.10166,37673.0,37672.0,0.30522699]
[1643985467893,0.10166,37673.0,37672.0,0.57478993]
[1643985468094,5.813e-05,37675.0,37673.0,0.34787]
[1643985468292,0.22631648,37684.0,37674.0,1.38913634]
[1643985468293,0.15249,37682.0,37674.0,1.38913634]
[1643985468492,0.15249,37682.0,37675.0,0.34787]
[1643985468493,0.26475,37681.0,37675.0,0.34787]
[1643985468700,0.26475,37681.0,37676.0,0.30264796]
[1643985468895,0.17877743,37676.0,37672.0,0.30522699]
[1643985469093,0.26475,37675.0,37672.0,0.30522699]
[1643985469295,0.115367,37674.0,37673.0,0.01999713]
[1643985469492,0.43011699,37674.0,37673.0,0.01999713]
[1643985469691,0.380117,37674.0,37673.0,0.01999713]
[1643985469894,0.43011699,37674.0,37673.0,0.01999713]
[1643985470095,0.16536699,37674.0,37673.0,0.01999713]
[1643985471034,0.43011699,37674.0,37673.0,0.01999713]
[1643985471237,0.65643347,37674.0,37673.0,0.01999713]
[1643985471433,1.30643347,37674.0,37659.0,0.34204999]
[1643985471633,0.15299234,37666.0,37659.0,0.39204999]
[1643985471832,0.26475,37665.0,37662.0,0.36153552]
[1643985472333,0.15249,37664.0,37662.0,0.36153552]
[1643985472533,0.26475,37663.0,37662.0,0.36153552]
[1643985472934,0.26475,37663.0,37662.0,0.63721028]
[1643985473234,0.22631648,37676.0,37663.0,1.782771]
[1643985473433,0.22631648,37676.0,37665.0,0.066385]
[1643985473434,0.04999999,37675.0,37665.0,0.066385]
[1643985473634,0.04999999,37675.0,37666.0,0.30089762]
[1643985473838,0.04999999,37675.0,37667.0,0.05]
[1643985473839,0.20025486,37672.0,37667.0,0.05]
[1643985474036,0.20025486,37672.0,37668.0,0.0932694]
[1643985474234,0.20025486,37672.0,37670.0,0.23009336]
[1643985474433,0.20025486,37672.0,37670.0,0.26622749]
[1643985474897,0.20025486,37672.0,37667.0,0.05]
[1643985474898,0.25025485,37672.0,37667.0,0.05]
[1643985475297,0.25025485,37672.0,37666.0,0.01986526]
[1643985475698,0.25025485,37672.0,37666.0,0.27989081]
[1643985475898,0.25025485,37672.0,37667.0,0.22222867]
[1643985476703,0.25025485,37672.0,37668.0,0.26740998]
[1643985476901,0.25025485,37672.0,37668.0,0.31740998]
[1643985477300,0.25025485,37672.0,37668.0,0.05]
[1643985477500,0.25025485,37672.0,37665.0,0.116385]
[1643985477701,0.25025485,37672.0,37665.0,0.066385]
[1643985478334,0.34886699,37672.0,37665.0,0.32751844]
[1643985478536,0.34886699,37672.0,37665.0,0.62999916]
[1643985478736,0.04999999,37669.0,37665.0,0.30248072]
[1643985479335,0.04999999,37669.0,37665.0,0.56645712]
[1643985479536,0.04999999,37671.0,37665.0,0.30248072]
[1643985479736,0.04999999,37671.0,37665.0,0.56949626]
[1643985480337,0.04999999,37671.0,37665.0,0.63588126]
[1643985480542,0.22631648,37676.0,37665.0,0.63588126]
[1643985480738,0.22631648,37679.0,37665.0,0.63588126]
[1643985481138,0.04999999,37672.0,37665.0,0.68588126]
[1643985481338,0.34068633,37682.0,37665.0,0.68588126]
[1643985481339,0.115367,37676.0,37675.0,0.28274756]
[1643985481545,0.22631648,37680.0,37675.0,0.5999309]
[1643985481741,0.22631648,37681.0,37675.0,0.5999309]
[1643985481937,0.27631647,37683.0,37675.0,0.5999309]
[1643985482186,0.115367,37682.0,37675.0,0.5999309]
[1643985482389,0.115367,37683.0,37681.0,0.08300189]
[1643985482587,0.22631648,37686.0,37681.0,0.08300189]
[1643985482786,0.2828956,37689.0,37681.0,0.08300189]
[1643985482787,0.115367,37685.0,37681.0,0.08300189]
[1643985482987,0.115367,37686.0,37681.0,0.13300189]
[1643985483286,0.39695922,37695.0,37685.0,0.27695936]
[1643985483287,0.22631648,37689.0,37685.0,0.27695936]
[1643985483488,0.16536699,37688.0,37681.0,0.08300189]
[1643985483689,0.22631648,37688.0,37681.0,0.08300189]
[1643985484087,0.1944417,37689.0,37681.0,0.13300189]
[1643985484293,0.115367,37688.0,37681.0,0.13300189]
[1643985484488,0.27109601,37687.0,37683.0,0.26238415]
[1643985484689,0.15125406,37681.0,37671.0,0.02021338]
[1643985484891,0.115367,37686.0,37671.0,0.02021338]
[1643985484892,0.22631648,37684.0,37671.0,0.02021338]
[1643985485092,0.27109601,37687.0,37671.0,0.02021338]
[1643985485093,0.04999999,37675.0,37671.0,0.02021338]
[1643985485292,0.04999999,37675.0,37673.0,0.02171506]
[1643985485293,0.115367,37674.0,37673.0,0.02171506]
[1643985485490,0.44385548,37674.0,37673.0,0.02171506]
[1643985485938,0.115367,37674.0,37673.0,0.02171506]
[1643985486136,0.115367,37678.0,37664.0,0.132765]
[1643985486339,0.22631648,37682.0,37664.0,0.282765]
[1643985486536,0.32100655,37683.0,37664.0,0.132765]
[1643985486537,0.54732303,37683.0,37664.0,0.132765]
[1643985486736,0.02171506,37674.0,37672.0,0.25992403]
[1643985486940,0.02171506,37674.0,37673.0,1.42778259]
[1643985487135,0.02171506,37674.0,37673.0,0.39787]
[1643985487339,0.02171506,37674.0,37673.0,0.97787]
[1643985487537,0.02171506,37674.0,37673.0,0.48]
[1643985488139,0.02171506,37674.0,37669.0,0.132742]
[1643985488338,0.02171506,37674.0,37673.0,0.48]
[1643985489238,0.14489978,37673.0,37668.0,0.05]
[1643985489606,0.14489978,37673.0,37667.0,0.05]
[1643985489798,0.04999999,37668.0,37665.0,0.132751]
[1643985489998,0.35024542,37668.0,37664.0,0.132763]
[1643985490199,0.04999999,37666.0,37664.0,0.132763]
[1643985490398,0.02171506,37674.0,37665.0,0.34787]
[1643985490597,0.02171506,37674.0,37671.0,0.28646308]
[1643985490800,0.02171506,37674.0,37672.0,0.33986507]
[1643985491000,0.22631648,37684.0,37673.0,0.84787]
[1643985491200,0.57150093,37685.0,37674.0,0.3713344]
[1643985491397,0.57150093,37685.0,37674.0,0.4713344]
[1643985491597,0.115367,37684.0,37679.0,0.08266919]
[1643985491996,0.16277774,37683.0,37679.0,0.08266919]
[1643985492201,0.115367,37684.0,37680.0,0.26141524]
[1643985492202,0.115367,37682.0,37680.0,0.26141524]
[1643985492401,0.01835263,37686.0,37680.0,0.26131524]
[1643985492799,0.01835263,37686.0,37685.0,0.89632715]
[1643985492999,0.01835263,37686.0,37685.0,1.60628789]
[1643985493352,0.01835263,37686.0,37685.0,2.02493275]
[1643985493650,0.01835263,37686.0,37685.0,1.75628789]
[1643985493951,0.01835263,37686.0,37685.0,0.95628789]
[1643985494150,0.01835263,37686.0,37685.0,0.34787]
[1643985494349,0.01835263,37686.0,37673.0,0.02171506]
[1643985494350,0.06835262,37686.0,37680.0,0.25710428]
[1643985494550,0.06835262,37686.0,37678.0,0.066365]
[1643985494551,0.14338242,37685.0,37678.0,0.066365]
[1643985494757,0.14338242,37685.0,37679.0,0.0489]
[1643985494950,0.01835263,37686.0,37679.0,0.31830883]
[1643985495350,0.01835263,37686.0,37682.0,0.14435105]
[1643985495552,0.22631648,37688.0,37683.0,0.3957793]
[1643985495953,0.42295654,37689.0,37683.0,0.62744601]
[1643985496155,0.115367,37688.0,37683.0,0.132697]
[1643985496358,0.14191089,37683.0,37679.0,0.0489]
[1643985496558,0.115367,37682.0,37673.0,0.1]
[1643985496754,0.3828956,37688.0,37671.0,0.132742]
[1643985496755,0.22631648,37684.0,37671.0,0.132742]
[1643985496954,0.04999999,37672.0,37671.0,0.132742]
[1643985497194,0.04999999,37672.0,37668.0,0.02123683]
[1643985497195,0.04999999,37673.0,37668.0,0.29301945]
[1643985497398,0.04999999,37675.0,37668.0,0.29301945]
[1643985497592,0.04999999,37675.0,37669.0,0.480615]
[1643985497793,0.04999999,37680.0,37669.0,0.40254092]
[1643985497993,0.04999999,37680.0,37670.0,0.05]
[1643985498193,0.04999999,37675.0,37670.0,0.05]
[1643985498492,0.15245378,37681.0,37674.0,0.75915572]
[1643985498693,0.15245378,37681.0,37674.0,0.25915572]
[1643985498893,0.04999999,37677.0,37675.0,0.25592536]
[1643985499295,0.15245378,37681.0,37675.0,0.25592536]
[1643985499296,0.20245377,37681.0,37675.0,0.25592536]
[1643985499493,0.15245378,37681.0,37675.0,0.25592536]
[1643985499694,0.20245377,37681.0,37675.0,0.25592536]
[1643985499896,0.20245377,37681.0,37674.0,0.1]
[1643985500093,0.20483966,37675.0,37673.0,0.28036142]
[1643985500295,0.04999999,37675.0,37670.0,0.28369295]
[1643985500495,0.04999999,37675.0,37671.0,0.34787]
[1643985500697,0.04999999,37675.0,37672.0,0.26017389]
[1643985500933,0.04999999,37675.0,37673.0,0.34787]
[1643985501134,0.04999999,37675.0,37673.0,0.44787]
[1643985501335,0.14952082,37679.0,37674.0,0.25888606]
[1643985501733,0.19952081,37679.0,37674.0,0.25888606]
[1643985501934,0.04999999,37679.0,37674.0,0.25888606]
[1643985502133,0.04999999,37681.0,37674.0,0.25888606]
[1643985502335,0.07935709,37683.0,37674.0,0.25888606]
[1643985502538,0.04999999,37675.0,37674.0,0.25888606]
[1643985502936,0.04999999,37675.0,37672.0,0.232747]
[1643985502937,0.04999999,37675.0,37672.0,0.49491294]
[1643985503136,0.04499999,37674.0,37672.0,0.39491294]
[1643985503339,0.30567357,37683.0,37673.0,0.25984138]
[1643985503638,0.04499999,37674.0,37673.0,0.25984138]
[1643985503836,0.31446703,37679.0,37673.0,0.25984138]
[1643985504138,0.31446703,37679.0,37668.0,0.005]
[1643985504139,0.04499999,37674.0,37664.0,0.005]
[1643985504340,0.31446703,37679.0,37663.0,0.02094722]
[1643985504341,0.04499999,37666.0,37663.0,0.02094722]
[1643985504598,0.04499999,37664.0,37663.0,0.02094722]
[1643985504885,0.2828956,37677.0,37663.0,0.02094722]
[1643985504886,0.26979592,37674.0,37663.0,0.02094722]
[1643985505088,0.04499999,37664.0,37663.0,0.02094722]
[1643985505285,0.22631648,37676.0,37663.0,0.02094722]
[1643985505286,0.04499999,37669.0,37664.0,0.07762002]
[1643985505489,0.47442362,37678.0,37668.0,0.005]
[1643985505490,0.19152802,37678.0,37668.0,0.005]
[1643985505692,0.02039485,37675.0,37673.0,0.005]
[1643985505985,0.04499999,37674.0,37667.0,0.071376]
[1643985506185,0.04499999,37674.0,37667.0,0.005]
[1643985506984,0.04499999,37674.0,37667.0,0.071376]
[1643985507184,0.02039485,37675.0,37668.0,0.34787]
[1643985507385,0.02039485,37675.0,37672.0,0.005]
[1643985507884,0.02039485,37675.0,37672.0,0.30431309]
[1643985508086,0.02039485,37675.0,37673.0,0.34787]
[1643985508342,0.02039485,37675.0,37673.0,0.44787]
[1643985508741,0.02039485,37675.0,37673.0,0.34787]
[1643985508942,0.30627554,37678.0,37672.0,0.29931309]
[1643985509145,0.35127553,37678.0,37672.0,0.37675996]
[1643985509342,0.31663927,37680.0,37674.0,0.26023382]
[1643985509343,0.115367,37677.0,37674.0,0.26023382]
[1643985509548,1.0401509,37700.0,37676.0,0.005]
[1643985509549,0.04499999,37681.0,37676.0,0.005]
[1643985509747,0.04499999,37681.0,37680.0,1.605]
[1643985509948,0.24800423,37687.0,37680.0,2.10177]
[1643985509949,0.02074886,37687.0,37680.0,2.10177]
[1643985510148,0.02074886,37687.0,37686.0,0.45]
[1643985510344,0.02074886,37687.0,37680.0,1.7489]
[1643985510547,0.02074886,37687.0,37684.0,0.08719785]
[1643985510744,0.02074886,37687.0,37686.0,0.005]
[1643985510946,0.06574885,37687.0,37686.0,0.005]
[1643985511349,0.06574885,37687.0,37683.0,0.132687]
[1643985511650,0.33862736,37684.0,37680.0,0.0489]
[1643985511946,0.04499999,37682.0,37677.0,0.25963237]
[1643985512185,0.14396926,37680.0,37677.0,0.25963237]
[1643985512484,0.14396926,37680.0,37679.0,0.005]
[1643985512691,0.65233767,37688.0,37679.0,0.005]
[1643985512692,0.22725537,37685.0,37679.0,0.005]
[1643985512886,0.04499999,37686.0,37679.0,0.28644619]
[1643985513084,0.27225536,37687.0,37681.0,0.005]
[1643985513283,0.04499999,37686.0,37681.0,0.005]
[1643985513483,0.28406921,37689.0,37679.0,0.28144619]
[1643985513484,0.22725537,37688.0,37679.0,0.28644619]
[1643985513684,0.19123287,37685.0,37679.0,0.28644619]
[1643985513883,0.22725537,37688.0,37684.0,0.005]
[1643985514087,0.22725537,37688.0,37687.0,0.855]
[1643985514287,0.01827432,37691.0,37688.0,0.34787]
[1643985514489,0.5863163,37698.0,37690.0,1.955]
[1643985514686,0.44269689,37704.0,37689.0,0.31869592]
[1643985514689,0.28396356,37704.0,37698.0,1.95]
[1643985514890,0.01777098,37719.0,37705.0,1.0]
[1643985515088,0.01,37719.0,37708.0,0.05]
[1643985515293,0.01,37719.0,37710.0,0.15]
[1643985515486,0.01,37719.0,37707.0,0.02819]
[1643985515487,0.28390953,37713.0,37711.0,0.31869592]
[1643985515686,0.01,37719.0,37707.0,0.07819]
[1643985515687,0.28390953,37714.0,37712.0,0.0489]
[1643985515940,0.28390953,37714.0,37713.0,0.22645938]
[1643985516143,0.01,37719.0,37713.0,1.56645938]
[1643985516342,0.04999999,37717.0,37714.0,0.39677]
[1643985516741,0.01,37719.0,37714.0,0.49677]
[1643985516942,0.066296,37726.0,37714.0,0.49677]
[1643985516943,0.28362017,37724.0,37714.0,0.49677]
[1643985517139,0.28362017,37723.0,37714.0,0.1489]
[1643985517339,0.28362017,37723.0,37722.0,0.08893934]
[1643985517541,0.39898717,37723.0,37714.0,0.1]
[1643985517741,0.066304,37721.0,37715.0,0.0489]
[1643985517955,0.24914336,37717.0,37716.0,0.0489]
[1643985518146,0.36451036,37717.0,37716.0,0.0489]
[1643985518343,0.215367,37717.0,37716.0,0.0489]
[1643985518544,0.53419595,37717.0,37716.0,0.0489]
[1643985518942,0.53419595,37717.0,37704.0,0.0489]
[1643985519145,0.70244912,37717.0,37704.0,0.0489]
[1643985519345,0.05,37709.0,37704.0,0.0489]